bitfinex/quotes_BTCUSD_20240821
["timestamp","ask_amount","ask_price","bid_price","bid_amount"]
[1724226895925,2.38431748,59733.0,59732.0,12.39819324]
[1724226896125,2.38431748,59733.0,59732.0,13.07178513]
[1724226896328,2.06714948,59733.0,59732.0,13.40661313]
[1724226896533,1.9762464,59733.0,59732.0,13.63107138]
[1724226896737,1.8088364,59733.0,59732.0,13.81403294]
[1724226897123,1.8088364,59733.0,59732.0,13.80000729]
[1724226897366,1.8088364,59733.0,59732.0,13.72102529]
[1724226897564,1.7753544,59733.0,59732.0,13.72202529]
[1724226897761,1.6414264,59733.0,59732.0,12.98005127]
[1724226897964,1.6414264,59733.0,59732.0,12.93533527]
[1724226898414,1.6414264,59733.0,59732.0,12.93633527]
[1724226898622,1.6414264,59733.0,59732.0,13.10529429]
[1724226898623,1.5398944,59733.0,59732.0,13.10529429]
[1724226899198,1.4009664,59733.0,59732.0,13.10530739]
[1724226899401,1.4009664,59733.0,59732.0,13.10430739]
[1724226899801,1.3674844,59733.0,59732.0,13.10530739]
[1724226900103,1.1615564,59733.0,59732.0,13.43980739]
[1724226900305,1.15917026,59733.0,59732.0,13.26983527]
[1724226900486,1.438,59734.0,59733.0,2.79523765]
[1724226900689,1.27059,59734.0,59733.0,11.31079583]
[1724226900888,1.26149,59734.0,59733.0,11.3107756]
[1724226901096,1.26149,59734.0,59733.0,12.8211708]
[1724226901560,0.04149,59734.0,59733.0,12.8211708]
[1724226901679,1.450766,59735.0,59734.0,2.17631]
[1724226901889,1.38876063,59735.0,59734.0,10.0595366]
[1724226902335,1.38876063,59735.0,59734.0,11.5699318]
[1724226902880,1.35527963,59735.0,59734.0,11.5699318]
[1724226903097,1.31627963,59735.0,59734.0,11.5699318]
[1724226903300,1.28227963,59735.0,59734.0,12.6553318]
[1724226903915,1.28227963,59735.0,59734.0,12.6563318]
[1724226904117,1.28227963,59735.0,59734.0,12.6287508]
[1724226904327,1.28227963,59735.0,59734.0,12.3527318]
[1724226904510,1.28227963,59735.0,59734.0,11.9002198]
[1724226905129,1.28227963,59735.0,59734.0,11.90021296]
[1724226905536,0.02827963,59735.0,59734.0,11.90021296]
[1724226905745,1.12127963,59736.0,59735.0,1.89135465]
[1724226905956,1.12127963,59736.0,59735.0,8.99694276]
[1724226906287,1.12127963,59736.0,59735.0,10.49694276]
[1724226906493,1.12127963,59736.0,59735.0,10.45713496]
[1724226906904,1.12127963,59736.0,59735.0,10.47113496]
[1724226907137,1.12127963,59736.0,59735.0,10.48513496]
[1724226907592,2.33837527,59737.0,59736.0,2.471433]
[1724226907825,2.33837527,59737.0,59736.0,11.70614215]
[1724226907826,1.9601233,59737.0,59736.0,11.70614215]
[1724226908029,1.9601233,59737.0,59736.0,13.1155021]
[1724226908030,1.81687991,59737.0,59736.0,13.1155021]
[1724226908233,1.81687991,59737.0,59736.0,14.7918021]
[1724226908234,1.66842908,59737.0,59736.0,14.7918021]
[1724226908474,1.65068094,59737.0,59736.0,14.7918021]
[1724226908675,1.31031213,59737.0,59736.0,14.7918021]
[1724226908887,1.29731213,59737.0,59736.0,14.7918021]
[1724226909088,1.16334332,59737.0,59736.0,14.7918021]
[1724226909328,1.16334332,59737.0,59736.0,14.79163237]
[1724226909537,1.12986332,59737.0,59736.0,14.79163237]
[1724226909781,1.09638332,59737.0,59736.0,14.79263237]
[1724226910023,1.02942332,59737.0,59736.0,14.79363237]
[1724226910256,0.99594332,59737.0,59736.0,14.72009737]
[1724226910505,0.95484332,59737.0,59736.0,14.72109737]
[1724226910740,0.92136332,59737.0,59736.0,14.72209737]
[1724226910979,0.78364332,59737.0,59736.0,14.72009737]
[1724226911236,0.78364332,59737.0,59736.0,15.8565277]
[1724226911237,0.13524332,59737.0,59736.0,15.8565277]
[1724226911459,0.04294332,59737.0,59736.0,13.85752321]
[1724226911663,0.90040008,59738.0,59737.0,3.10188865]
[1724226911867,0.90040008,59738.0,59737.0,11.3755379]
[1724226912095,0.79426008,59738.0,59737.0,11.55526342]
[1724226912339,0.79426008,59738.0,59737.0,13.06564321]
[1724226912340,0.66032202,59738.0,59737.0,13.06564321]
[1724226912553,0.62684202,59738.0,59737.0,13.06564321]
[1724226912791,0.39247202,59738.0,59737.0,14.02979428]
[1724226913031,0.20980396,59738.0,59737.0,14.02979428]
[1724226913683,0.07670696,59738.0,59737.0,13.06564321]
[1724226913897,0.04322796,59738.0,59737.0,13.60647712]
[1724226914104,1.45763208,59739.0,59738.0,2.352467]
[1724226914337,0.23763208,59739.0,59738.0,12.14556868]
[1724226914578,0.23330208,59739.0,59738.0,12.15592557]
[1724226914802,0.09938608,59739.0,59738.0,13.65592557]
[1724226915011,0.06590708,59739.0,59738.0,13.66762557]
[1724226915430,0.06590708,59739.0,59738.0,13.66862557]
[1724226915646,0.03242808,59739.0,59738.0,13.66862557]
[1724226916287,8e-08,59739.0,59738.0,13.65853922]
[1724226916513,2.09471958,59740.0,59739.0,2.4025726]
[1724226916739,1.89385158,59740.0,59739.0,10.97749785]
[1724226916957,1.89385158,59740.0,59739.0,12.97638839]
[1724226917237,1.87675732,59740.0,59739.0,14.47638839]
[1724226917443,1.87675732,59740.0,59739.0,14.48841981]
[1724226918053,1.87675732,59740.0,59739.0,14.49041981]
[1724226919302,1.87675732,59740.0,59739.0,14.49041245]
[1724226919462,1.84327932,59740.0,59739.0,14.49041245]
[1724226920875,1.84327932,59740.0,59739.0,13.39164145]
[1724226921081,1.84327932,59740.0,59739.0,14.19457757]
[1724226921512,1.84327932,59740.0,59739.0,14.07670304]
[1724226921711,1.84327932,59740.0,59739.0,14.19290304]
[1724226921917,1.84327932,59740.0,59739.0,13.35035592]
[1724226922856,1.65188932,59740.0,59739.0,12.92369516]
[1724226923061,1.63514608,59740.0,59739.0,12.92369516]
[1724226923710,1.46775608,59740.0,59739.0,12.922693]
[1724226923946,1.46775608,59740.0,59739.0,12.921693]
[1724226924154,1.40624608,59740.0,59739.0,12.746393]
[1724226924362,1.40624608,59740.0,59739.0,12.747393]
[1724226924807,1.33929008,59740.0,59739.0,12.75763374]
[1724226925017,1.30581208,59740.0,59739.0,12.75663374]
[1724226925432,1.30581208,59740.0,59739.0,12.75763374]
[1724226925636,1.27233408,59740.0,59739.0,12.75663374]
[1724226925846,1.16898709,59740.0,59739.0,12.75663374]
[1724226926082,1.13550909,59740.0,59739.0,12.75763374]
[1724226926298,1.13550909,59740.0,59739.0,12.77100828]
[1724226926505,0.89726999,59741.0,59740.0,2.78515425]
[1724226926715,1.083492,59742.0,59741.0,0.502167]
[1724226926924,0.89527407,59742.0,59741.0,8.42371333]
[1724226927125,0.89527407,59742.0,59741.0,10.74502758]
[1724226927378,0.83367407,59742.0,59741.0,10.74502758]
[1724226927584,0.83367407,59742.0,59741.0,10.7553509]
[1724226927791,0.66628907,59742.0,59741.0,11.4553509]
[1724226928007,0.66628907,59742.0,59741.0,7.8896989]
[1724226928218,0.66628907,59742.0,59741.0,11.4563509]
[1724226928427,0.66628907,59742.0,59741.0,11.4793509]
[1724226928669,0.63281207,59742.0,59741.0,11.4793509]
[1724226928882,0.59933507,59742.0,59741.0,11.4793509]
[1724226929085,0.53238107,59742.0,59741.0,11.4676509]
[1724226929299,0.49890407,59742.0,59741.0,11.4686509]
[1724226929502,0.49890407,59742.0,59741.0,11.42859265]
[1724226930376,0.43195007,59742.0,59741.0,11.42859265]
[1724226930796,0.39847307,59742.0,59741.0,11.42859265]
[1724226931217,0.29804207,59742.0,59741.0,11.42859265]
[1724226931425,0.23108807,59742.0,59741.0,12.39261995]
[1724226931628,1.24468371,59743.0,59742.0,2.806018]
[1724226931835,1.17772971,59743.0,59742.0,10.83345763]
[1724226932046,1.17772971,59743.0,59742.0,11.59845266]
[1724226932254,1.17772971,59743.0,59742.0,14.39058091]
[1724226932502,1.10412161,59743.0,59742.0,12.73827266]
[1724226932714,1.02072025,59743.0,59742.0,12.73827266]
[1724226932918,0.92028925,59743.0,59742.0,12.73927266]
[1724226933132,0.92028925,59743.0,59742.0,12.73916698]
[1724226933340,0.92028925,59743.0,59742.0,12.85536698]
[1724226933800,0.92028925,59743.0,59742.0,12.85636698]
[1724226934218,0.85333525,59743.0,59742.0,12.86806698]
[1724226935664,0.81985825,59743.0,59742.0,12.86806698]
[1724226935863,0.81985825,59743.0,59742.0,12.47356698]
[1724226936268,1.39835825,59743.0,59742.0,10.93556768]
[1724226936500,1.39835825,59743.0,59742.0,11.10445316]
[1724226936702,1.39835825,59743.0,59742.0,11.05176768]
[1724226937422,1.39835825,59743.0,59742.0,11.06544768]
[1724226937641,1.39835825,59743.0,59742.0,11.58344768]
[1724226937970,1.39835825,59743.0,59742.0,15.96528369]
[1724226938104,1.39918025,59743.0,59742.0,15.96528369]
[1724226938289,1.39918025,59743.0,59742.0,15.96541994]
[1724226939431,1.39918025,59743.0,59742.0,15.95371994]
[1724226940037,1.39918025,59743.0,59742.0,15.34130334]
[1724226940196,1.39918025,59743.0,59742.0,10.55078733]
[1724226940712,1.39918025,59743.0,59742.0,10.27855993]
[1724226940919,1.39918025,59743.0,59742.0,10.27755993]
[1724226941111,1.39918025,59743.0,59742.0,9.53479606]
[1724226941310,1.39918025,59743.0,59742.0,10.2906079]
[1724226941538,1.39873603,59743.0,59742.0,10.3046079]
[1724226941738,1.39873603,59743.0,59742.0,10.4046079]
[1724226941940,1.39873603,59743.0,59742.0,10.4276079]
[1724226944195,1.39873603,59743.0,59742.0,11.3919598]
[1724226945357,1.39873603,59743.0,59742.0,11.7267318]
[1724226945558,1.39873603,59743.0,59742.0,12.1614118]
[1724226945761,1.39873603,59743.0,59742.0,13.34820258]
[1724226946408,1.39873603,59743.0,59742.0,12.92720258]
[1724226947259,1.39873603,59743.0,59742.0,12.92722427]
[1724226948424,1.01253603,59743.0,59742.0,13.21772427]
[1724226948626,0.82023603,59743.0,59742.0,13.21772427]
[1724226949228,0.82023603,59743.0,59742.0,13.20602427]
[1724226949432,0.82023603,59743.0,59742.0,13.19202427]
[1724226949643,0.83323603,59743.0,59742.0,13.17902427]
[1724226950085,0.83323603,59743.0,59742.0,13.17802427]
[1724226950432,0.82023603,59743.0,59742.0,13.17802427]
[1724226950677,0.83323603,59743.0,59742.0,13.17902427]
[1724226950935,0.84523603,59743.0,59742.0,13.18002427]
[1724226951175,0.83323603,59743.0,59742.0,13.17902427]
[1724226951429,0.84523603,59743.0,59742.0,13.18002427]
[1724226951706,0.84523603,59743.0,59742.0,15.08439818]
[1724226951929,0.83223603,59743.0,59742.0,13.60001939]
[1724226952179,0.83323603,59743.0,59742.0,15.0833933]
[1724226952623,0.83223603,59743.0,59742.0,15.0833933]
[1724226953041,0.84523603,59743.0,59742.0,15.0843933]
[1724226954258,0.84523603,59743.0,59742.0,15.0960933]
[1724226955133,0.83223603,59743.0,59742.0,15.0950933]
[1724226955336,0.82023603,59743.0,59742.0,15.0940933]
[1724226955594,1.40263603,59743.0,59742.0,14.8315933]
[1724226955798,1.40263603,59743.0,59742.0,14.3969133]
[1724226956000,1.40263603,59743.0,59742.0,12.91353939]
[1724226956556,1.40263603,59743.0,59742.0,11.72674861]
[1724226958908,1.40263603,59743.0,59742.0,11.75440686]
[1724226960717,1.40263603,59743.0,59742.0,12.3819659]
[1724226960916,1.40263603,59743.0,59742.0,11.71436631]
[1724226961729,1.01733603,59743.0,59742.0,11.72804631]
[1724226961934,1.01733603,59743.0,59742.0,12.03094631]
[1724226962151,0.82223603,59743.0,59742.0,12.69744631]
[1724226962358,0.82223603,59743.0,59742.0,13.88423709]
[1724226962703,0.82223603,59743.0,59742.0,14.0010995]
[1724226962907,0.82223603,59743.0,59742.0,13.88423709]
[1724226963037,0.82223603,59743.0,59742.0,14.0010531]
[1724226963250,0.82223603,59743.0,59742.0,14.10486448]
[1724226963675,0.82223603,59743.0,59742.0,13.88514129]
[1724226963878,0.82223603,59743.0,59742.0,14.09397159]
[1724226964265,0.82223603,59743.0,59742.0,14.10567159]
[1724226964913,0.82223603,59743.0,59742.0,13.88514129]
[1724226965473,0.82223603,59743.0,59742.0,13.98895266]
[1724226965689,0.82223603,59743.0,59742.0,13.97725266]
[1724226966098,0.82223603,59743.0,59742.0,13.99004538]
[1724226966686,0.82223603,59743.0,59742.0,13.87344129]
[1724226967474,0.82223603,59743.0,59742.0,14.14545984]
[1724226967626,0.81233381,59743.0,59742.0,14.13177984]
[1724226968148,0.81233381,59743.0,59742.0,14.12007984]
[1724226968380,0.81233381,59743.0,59742.0,14.08002159]
[1724226968783,0.81233381,59743.0,59742.0,13.85976129]
[1724226969491,0.81233381,59743.0,59742.0,13.85973986]
[1724226970399,0.81233381,59743.0,59742.0,13.68543986]
[1724226972937,0.81233381,59743.0,59742.0,13.69911986]
[1724226973417,0.79552381,59743.0,59742.0,13.71081986]
[1724226973886,0.79552381,59743.0,59742.0,13.69713986]
[1724226977491,1.39842381,59743.0,59742.0,13.69713986]
[1724226979131,1.39842381,59743.0,59742.0,13.71081986]
[1724226981339,0.99162381,59743.0,59742.0,13.71081986]
[1724226983686,0.99162381,59743.0,59742.0,13.93248011]
[1724226986102,0.99162381,59743.0,59742.0,13.91880011]
[1724226986318,0.99162381,59743.0,59742.0,13.91799888]
[1724226986930,0.99162381,59743.0,59742.0,14.25277088]
[1724226987150,0.99162381,59743.0,59742.0,13.91799888]
[1724226987360,0.99162381,59743.0,59742.0,13.69713986]
[1724226987626,0.99162381,59743.0,59742.0,13.9181102]
[1724226988439,0.79552381,59743.0,59742.0,13.9181102]
[1724226989280,0.79432381,59743.0,59742.0,13.9181102]
[1724226990132,0.79432381,59743.0,59742.0,14.2528822]
[1724226990320,0.60883537,59743.0,59742.0,14.66907011]
[1724226991525,0.60883537,59743.0,59742.0,14.62901186]
[1724226992127,0.60883537,59743.0,59742.0,14.03191186]
[1724226992475,0.60883537,59743.0,59742.0,14.02021186]
[1724226993683,0.60883537,59743.0,59742.0,14.63211186]
[1724226993864,0.60883537,59743.0,59742.0,14.64579186]
[1724226994064,0.60883537,59743.0,59742.0,14.63211186]
[1724226994272,0.59528228,59743.0,59742.0,14.63211186]
[1724226994470,0.59236969,59743.0,59742.0,14.66047011]
[1724226994849,0.59236969,59743.0,59742.0,14.62041186]
[1724226995050,0.59236969,59743.0,59742.0,14.63211186]
[1724226996095,0.59236969,59743.0,59742.0,14.43281186]
[1724226996296,0.59236969,59743.0,59742.0,14.02021186]
[1724226997317,0.59236969,59743.0,59742.0,14.03191186]
[1724226997524,0.59236969,59743.0,59742.0,14.03185143]
[1724226999358,0.59236969,59743.0,59742.0,14.46653143]
[1724227000558,0.59236969,59743.0,59742.0,14.68604754]
[1724227000974,0.55651969,59743.0,59742.0,14.46653143]
[1724227001255,0.55651969,59743.0,59742.0,14.03185143]
[1724227001774,0.52095969,59743.0,59742.0,14.03185143]
[1724227002310,0.52095969,59743.0,59742.0,14.03184646]
[1724227002536,0.52095969,59743.0,59742.0,14.03184291]
[1724227002789,0.52095969,59743.0,59742.0,13.14189125]
[1724227002987,0.52095969,59743.0,59742.0,14.03184291]
[1724227004205,0.47095086,59743.0,59742.0,14.03184291]
[1724227004438,0.55906968,59743.0,59742.0,13.69707091]
[1724227004669,0.55906968,59743.0,59742.0,12.77026735]
[1724227005164,0.55906968,59743.0,59742.0,12.49858013]
[1724227005428,0.55906968,59743.0,59742.0,13.10503935]
[1724227006305,0.55906968,59743.0,59742.0,13.53971935]
[1724227006952,0.55906968,59743.0,59742.0,13.53977784]
[1724227007164,0.55906968,59743.0,59742.0,13.20500584]
[1724227007381,0.55906968,59743.0,59742.0,12.77032584]
[1724227007602,0.55906968,59743.0,59742.0,12.49863862]
[1724227008888,0.55906968,59743.0,59742.0,12.49757815]
[1724227009497,0.37646968,59743.0,59742.0,12.49757815]
[1724227009701,0.37646968,59743.0,59742.0,12.50927815]
[1724227009904,0.37646968,59743.0,59742.0,12.8841084]
[1724227010118,0.37646968,59743.0,59742.0,13.15579562]
[1724227010605,0.37646968,59743.0,59742.0,12.8841084]
[1724227011367,0.37646968,59743.0,59742.0,14.07073544]
[1724227011776,0.37646968,59743.0,59742.0,14.03067719]
[1724227012594,0.37646968,59743.0,59742.0,14.46535719]
[1724227014206,0.37646968,59743.0,59742.0,14.68566668]
[1724227014331,0.23181678,59743.0,59742.0,14.46535719]
[1724227016147,0.19786678,59743.0,59742.0,14.46535719]
[1724227016358,0.19786678,59743.0,59742.0,14.46528675]
[1724227016959,0.16216678,59743.0,59742.0,14.4928784]
[1724227017159,0.16216678,59743.0,59742.0,13.30631796]
[1724227018612,0.16216678,59743.0,59742.0,13.68421796]
[1724227020357,0.16216678,59743.0,59742.0,14.01871796]
[1724227020557,0.16216678,59743.0,59742.0,13.97865971]
[1724227020828,0.13870778,59743.0,59742.0,13.57596471]
[1724227022278,0.13870778,59743.0,59742.0,13.58836471]
[1724227022484,0.13870778,59743.0,59742.0,13.92586471]
[1724227023104,0.13870778,59743.0,59742.0,13.91416471]
[1724227023636,0.13870778,59743.0,59742.0,14.18580746]
[1724227024078,0.10425778,59743.0,59742.0,14.18580746]
[1724227024279,0.10425778,59743.0,59742.0,13.91416471]
[1724227024456,0.02479578,59743.0,59742.0,15.0212894]
[1724227024689,0.02479578,59743.0,59742.0,14.16930271]
[1724227024879,0.02479578,59743.0,59742.0,13.83470271]
[1724227026595,0.62239578,59743.0,59742.0,13.83470271]
[1724227027073,0.02479578,59743.0,59742.0,15.02128747]
[1724227027547,1.883322,59745.0,59744.0,1.506424]
[1724227027548,1.88124242,59745.0,59744.0,1.506424]
[1724227027789,1.88124242,59745.0,59744.0,5.7529817]
[1724227028028,1.88124242,59745.0,59744.0,5.76326416]
[1724227028289,1.88124242,59745.0,59744.0,11.06042016]
[1724227028545,1.88124242,59745.0,59744.0,11.69001106]
[1724227028800,1.88124242,59745.0,59744.0,11.70171106]
[1724227029055,1.88224242,59745.0,59744.0,11.08566001]
[1724227029290,1.88224242,59745.0,59744.0,11.97561617]
[1724227029523,2.26914242,59745.0,59744.0,11.97561617]
[1724227030015,2.27014242,59745.0,59744.0,11.98961617]
[1724227030487,2.27014242,59745.0,59744.0,11.71802751]
[1724227032809,2.27014242,59745.0,59744.0,10.87548039]
[1724227033463,2.27096442,59745.0,59744.0,10.87548039]
[1724227033674,2.27096442,59745.0,59744.0,11.31015677]
[1724227034070,2.27096442,59745.0,59744.0,11.32185677]
[1724227035313,1.88406442,59745.0,59744.0,11.65661777]
[1724227035510,1.69626442,59745.0,59744.0,11.69764801]
[1724227035843,1.69626442,59745.0,59744.0,11.26296801]
[1724227037131,1.61819301,59746.0,59744.0,8.89572813]
[1724227037328,0.2241,59751.0,59750.0,1.516392]
[1724227037329,0.07174799,59751.0,59750.0,1.516392]
[1724227037544,0.2231574,59747.0,59746.0,2.72328287]
[1724227037746,0.88540274,59748.0,59747.0,5.029799]
[1724227038073,0.87757309,59748.0,59747.0,9.52416834]
[1724227038312,0.16053038,59748.0,59747.0,9.52416834]
[1724227038512,2.3101,59749.0,59748.0,1.941564]
[1724227038718,2.00880374,59749.0,59748.0,9.69331869]
[1724227039142,1.87487248,59749.0,59748.0,10.22941082]
[1724227039372,1.74094122,59749.0,59748.0,11.19331869]
[1724227039798,1.65967522,59749.0,59748.0,11.21631869]
[1724227040005,1.57852922,59749.0,59748.0,11.21631869]
[1724227040223,1.54505622,59749.0,59748.0,11.21631869]
[1724227040426,1.54505622,59749.0,59748.0,11.21731869]
[1724227040630,1.51158322,59749.0,59748.0,11.63201869]
[1724227040882,1.37769122,59749.0,59748.0,11.63201869]
[1724227041081,0.50879822,59749.0,59748.0,10.66811082]
[1724227041373,0.50879822,59749.0,59748.0,10.68081082]
[1724227041512,0.49799822,59749.0,59748.0,10.68081082]
[1724227042118,0.33063322,59749.0,59748.0,10.68081082]
[1724227042318,0.25063323,59749.0,59748.0,10.68081082]
[1724227042527,0.25063323,59749.0,59748.0,15.39637114]
[1724227042861,0.08326823,59749.0,59748.0,12.27530804]
[1724227043440,0.08326823,59749.0,59748.0,12.62014022]
[1724227043826,0.04979523,59749.0,59748.0,12.50394022]
[1724227044086,0.04979523,59749.0,59748.0,12.80934938]
[1724227044423,0.04979523,59749.0,59748.0,13.54446508]
[1724227044653,0.04979523,59749.0,59748.0,11.4229851]
[1724227044654,0.45629523,59749.0,59748.0,11.4229851]
[1724227044859,0.65279523,59749.0,59748.0,9.80785685]
[1724227045063,0.65279523,59749.0,59748.0,9.06644639]
[1724227045266,0.65279523,59749.0,59748.0,8.73184639]
[1724227045504,0.65361723,59749.0,59748.0,8.73184639]
[1724227045754,0.65361723,59749.0,59748.0,9.06544639]
[1724227046052,0.64452914,59749.0,59748.0,9.06544639]
[1724227046255,0.64452914,59749.0,59748.0,9.06444639]
[1724227046685,0.65752914,59749.0,59748.0,9.06544639]
[1724227046886,0.65752914,59749.0,59748.0,9.08844639]
[1724227047093,0.65652914,59749.0,59748.0,9.08844639]
[1724227047296,0.64452914,59749.0,59748.0,9.08744639]
[1724227047502,0.64552914,59749.0,59748.0,9.10144639]
[1724227047707,0.64652914,59749.0,59748.0,9.21544639]
[1724227049184,0.64652914,59749.0,59748.0,8.78376639]
[1724227049386,0.64652914,59749.0,59748.0,8.77206639]
[1724227049790,0.64652914,59749.0,59748.0,12.39728142]
[1724227050010,0.64652914,59749.0,59748.0,12.44626957]
[1724227051105,0.64652914,59749.0,59748.0,13.18788363]
[1724227052899,0.64652914,59749.0,59748.0,14.15198308]
[1724227054295,0.64652914,59749.0,59748.0,14.58366308]
[1724227054537,0.64652914,59749.0,59748.0,14.59536308]
[1724227055168,0.64652914,59749.0,59748.0,14.54637493]
[1724227056415,0.64652914,59749.0,59748.0,14.81713621]
[1724227056923,0.64652914,59749.0,59748.0,14.44660409]
[1724227057177,0.64652914,59749.0,59748.0,14.81741155]
[1724227058451,0.64652914,59749.0,59748.0,14.54665027]
[1724227058701,0.64652914,59749.0,59748.0,14.54665138]
[1724227059489,0.64652914,59749.0,59748.0,10.48975635]
[1724227059797,0.64652914,59749.0,59748.0,9.12107135]
[1724227059800,0.64652914,59749.0,59748.0,5.2409139]
[1724227060022,0.64652914,59749.0,59748.0,4.58111537]
[1724227060231,0.64952914,59749.0,59748.0,4.09698537]
[1724227060435,0.64752914,59749.0,59748.0,3.54985428]
[1724227060640,0.64552914,59749.0,59748.0,3.54985428]
[1724227060841,0.64852914,59749.0,59748.0,3.56385428]
[1724227061048,0.64752914,59749.0,59748.0,3.54985428]
[1724227061295,0.64752914,59749.0,59748.0,1.28595805]
[1724227061484,0.003,59744.0,59743.0,0.4]
[1724227061694,0.6765,59744.0,59743.0,0.77098494]
[1724227062116,0.6765,59744.0,59743.0,0.47507099]
[1724227062325,0.6765,59744.0,59743.0,0.4]
[1724227062536,0.392,59743.0,59742.0,0.2508042]
[1724227062739,0.003,59742.0,59741.0,0.07597519]
[1724227062950,0.003,59742.0,59739.0,0.22621279]
[1724227062951,0.003,59740.0,59739.0,0.30128378]
[1724227063153,0.003,59740.0,59739.0,0.6]
[1724227063370,0.003,59740.0,59739.0,0.4]
[1724227063585,0.003,59739.0,59738.0,0.4009042]
[1724227064619,0.003,59739.0,59738.0,0.5009042]
[1724227065242,0.004,59739.0,59738.0,0.5149042]
[1724227066270,0.005,59739.0,59738.0,0.5279042]
[1724227067181,0.005,59739.0,59738.0,0.69190718]
[1724227067396,0.005,59739.0,59738.0,1.09371818]
[1724227067618,0.002,59739.0,59738.0,1.12371818]
[1724227068078,0.001,59739.0,59738.0,1.10971818]
[1724227068301,0.04070714,59740.0,59738.0,2.59671818]
[1724227068519,0.002,59739.0,59738.0,2.0579042]
[1724227068676,0.001,59739.0,59738.0,2.0439042]
[1724227069106,0.04070714,59740.0,59739.0,1.621106]
[1724227069427,0.04070714,59740.0,59739.0,1.659503]
[1724227069841,0.04070714,59740.0,59739.0,1.67204128]
[1724227070052,0.04070714,59740.0,59739.0,3.90204128]
[1724227072077,0.04070714,59740.0,59739.0,3.91604128]
[1724227072328,0.04070714,59740.0,59739.0,3.93004128]
[1724227072983,0.04070714,59740.0,59739.0,4.00470023]
[1724227073397,0.04070714,59740.0,59739.0,3.93004128]
[1724227073603,0.04070714,59740.0,59739.0,3.39003543]
[1724227073806,0.04070714,59740.0,59739.0,3.34028128]
[1724227074013,0.04070714,59740.0,59739.0,3.39003563]
[1724227074560,0.04070714,59740.0,59739.0,3.55403861]
[1724227074777,0.04070714,59740.0,59739.0,3.50428426]
[1724227076005,0.04070714,59740.0,59739.0,3.93121226]
[1724227076420,0.04070714,59740.0,59739.0,5.43121226]
[1724227077415,0.04070714,59740.0,59739.0,4.72265726]
[1724227077627,0.04070714,59740.0,59739.0,4.65917326]
[1724227078110,0.04070714,59740.0,59739.0,3.15917326]
[1724227078331,0.04070714,59740.0,59739.0,2.11191399]
[1724227079136,0.04070714,59740.0,59739.0,1.97316999]
[1724227079341,0.04070714,59740.0,59739.0,1.82204299]
[1724227079342,0.04370714,59740.0,59739.0,1.82204299]
[1724227079605,1e-08,59740.0,59739.0,1.37095826]
[1724227079805,1e-08,59740.0,59739.0,1.03454126]
[1724227080552,1e-08,59740.0,59739.0,0.87053828]
[1724227080752,1e-08,59740.0,59739.0,1.01053828]
[1724227083521,2.186422,59741.0,59739.0,1.17454126]
[1724227083727,2.186422,59741.0,59740.0,0.642565]
[1724227083934,2.186422,59741.0,59740.0,1.44942591]
[1724227084981,2.186422,59741.0,59740.0,1.61342889]
[1724227085183,2.186422,59741.0,59740.0,1.62742889]
[1724227085586,2.186422,59741.0,59740.0,1.64142889]
[1724227086916,2.186422,59741.0,59740.0,2.33715489]
[1724227087451,2.186422,59741.0,59740.0,1.70811689]
[1724227090455,2.186422,59741.0,59740.0,1.54481389]
[1724227090659,2.186422,59741.0,59740.0,1.51968989]
[1724227090873,2.186422,59741.0,59740.0,1.56948748]
[1724227091111,2.186422,59741.0,59740.0,1.51968989]
[1724227091291,2.186422,59741.0,59740.0,1.59426658]
[1724227091534,2.186422,59741.0,59740.0,1.96527304]
[1724227093468,2.186422,59741.0,59740.0,1.89069635]
[1724227094556,2.186422,59741.0,59740.0,1.99013194]
[1724227095199,2.186422,59741.0,59740.0,2.33982394]
[1724227095411,2.186422,59741.0,59740.0,2.36468283]
[1724227095651,2.186422,59741.0,59740.0,2.19729083]
[1724227095879,2.186422,59741.0,59740.0,2.07299635]
[1724227096092,2.186422,59741.0,59740.0,2.01517109]
[1724227096303,2.186422,59741.0,59740.0,1.89069635]
[1724227096938,2.186422,59741.0,59740.0,1.88004735]
[1724227097161,2.186422,59741.0,59740.0,1.88004265]
[1724227097571,2.186422,59741.0,59740.0,2.00456729]
[1724227098413,2.186422,59741.0,59740.0,1.88004265]
[1724227098621,2.186422,59741.0,59740.0,3.50456729]
[1724227099037,2.186422,59741.0,59740.0,3.38004265]
[1724227102125,2.186422,59741.0,59740.0,4.46621865]
[1724227102757,2.186422,59741.0,59740.0,4.80100265]
[1724227102972,2.186422,59741.0,59740.0,4.84490388]
[1724227103386,2.186422,59741.0,59740.0,5.36427609]
[1724227103596,2.186422,59741.0,59740.0,5.34337486]
[1724227104004,2.186422,59741.0,59740.0,5.36954427]
[1724227104422,2.186422,59741.0,59740.0,4.99501027]
[1724227104608,2.186422,59741.0,59740.0,9.49495727]
[1724227104818,2.186422,59741.0,59740.0,9.5388585]
[1724227105024,2.186422,59741.0,59740.0,9.5138585]
[1724227105424,2.186422,59741.0,59740.0,9.46995727]
[1724227105629,2.186422,59741.0,59740.0,8.96282706]
[1724227106048,2.186422,59741.0,59740.0,8.89120506]
[1724227106668,2.186422,59741.0,59740.0,8.89110984]
[1724227107095,2.186422,59741.0,59740.0,8.02784784]
[1724227107321,2.186422,59741.0,59740.0,7.93019984]
[1724227108375,2.186422,59741.0,59740.0,7.94189984]
[1724227109029,2.186422,59741.0,59740.0,7.92789984]
[1724227109453,2.186422,59741.0,59740.0,7.93019984]
[1724227109692,2.186422,59741.0,59740.0,7.91619984]
[1724227110127,2.186422,59741.0,59740.0,7.93019984]
[1724227110340,2.186422,59741.0,59740.0,7.97510107]
[1724227110756,2.186422,59741.0,59740.0,7.96110107]
[1724227110981,2.186422,59741.0,59740.0,7.97510107]
[1724227111593,2.186422,59741.0,59740.0,8.67510107]
[1724227112684,2.186422,59741.0,59740.0,8.68680107]
[1724227113112,2.186422,59741.0,59740.0,9.02358506]
[1724227113323,2.186422,59741.0,59740.0,9.83226916]
[1724227114156,2.186422,59741.0,59740.0,9.81826916]
[1724227114371,2.186422,59741.0,59740.0,9.83226916]
[1724227114593,2.186422,59741.0,59740.0,9.82996916]
[1724227115085,2.186422,59741.0,59740.0,9.84396916]
[1724227115299,2.186422,59741.0,59740.0,9.82996916]
[1724227115507,2.186422,59741.0,59740.0,9.83226916]
[1724227115715,2.186422,59741.0,59740.0,9.84383395]
[1724227115930,2.186422,59741.0,59740.0,9.82983395]
[1724227116134,2.186422,59741.0,59740.0,10.17861795]
[1724227116559,2.186422,59741.0,59740.0,10.16461795]
[1724227116769,2.186422,59741.0,59740.0,9.47861795]
[1724227116970,2.186422,59741.0,59740.0,9.46691795]
[1724227117177,2.186422,59741.0,59740.0,10.90462495]
[1724227117432,2.186422,59741.0,59740.0,10.86123495]
[1724227117632,2.186422,59741.0,59740.0,10.65899095]
[1724227118034,2.186422,59741.0,59740.0,10.67299095]
[1724227119014,2.186422,59741.0,59740.0,11.37298658]
[1724227119252,2.18622054,59741.0,59740.0,11.37298658]
[1724227119490,2.18622054,59741.0,59740.0,11.37266658]